fUST/lending_fUST_20250824
["ID","MTS","AMOUNT","RATE_DAILY","PERIOD"]
[381084885,1756018242114,-151.0,0.000399,30]
[381084886,1756018242123,-151.0,0.000399,30]
[381084887,1756018242132,-151.0,0.000399,30]
[381084888,1756018242142,-151.0,0.000399,30]
[381084889,1756018242151,-151.0,0.000399,30]
[381084890,1756018242161,-151.0,0.000399,30]
[381084891,1756018242170,-151.0,0.000399,30]
[381084892,1756018242180,-463.279017,0.000399,30]
[381084893,1756018242189,-1579.738618,0.000399,30]
[381084894,1756018242199,-345.336966,0.000399,30]
[381084895,1756018242208,-463.279017,0.000399,30]
[381084896,1756018242217,-151.0,0.000399,30]
[381084897,1756018242226,-345.336966,0.000399,30]
[381084898,1756018242236,-1579.738618,0.000399,30]
[381084899,1756018242245,-463.279017,0.000399,30]
[381084900,1756018242255,-151.0,0.000399,30]
[381084901,1756018242264,-345.336966,0.000399,30]
[381084902,1756018242273,-1579.738618,0.000399,30]
[381084903,1756018242282,-463.279017,0.000399,30]
[381084904,1756018242291,-345.336966,0.000399,30]
[381084905,1756018242300,-1579.738618,0.000399,30]
[381084906,1756018242310,-504.77465991,0.00039973,5]
[381084907,1756018242319,-500.0,0.00039973,5]
[381084908,1756018242329,-502.13867085,0.00039973,2]
[381084909,1756018242338,-500.0,0.00039973,5]
[381084910,1756018242347,-500.0,0.00039973,5]
[381084911,1756018242357,-500.0,0.00039973,5]
[381084912,1756018242366,-500.0,0.00039973,5]
[381084913,1756018242376,-162.0534906,0.00039973,5]
[381084914,1756018242386,-500.0,0.00039973,5]
[381084915,1756018242395,-500.0,0.00039973,5]
[381084916,1756018242406,-500.0,0.00039973,5]
[381084917,1756018242415,-500.57817815,0.00039973,5]
[381084918,1756018242424,-500.0,0.00039973,5]
[381084919,1756018242433,-502.59252625,0.00039973,5]
[381084920,1756018242442,-500.0,0.00039989,120]
[381084921,1756018242451,-500.0,0.00039989,120]
[381084922,1756018242464,-500.0,0.00039989,120]
[381084923,1756018242474,-500.0,0.00039989,120]
[381084924,1756018242483,-500.0,0.00039989,120]
[381084925,1756018242493,-500.0,0.00039989,120]
[381084926,1756018242501,-500.0,0.00039989,120]
[381084927,1756018242511,-500.0,0.00039989,120]
[381084928,1756018242520,-500.0,0.00039989,120]
[381084929,1756018242529,-500.0,0.00039989,120]
[381084930,1756018242538,-500.0,0.00039989,120]
[381084931,1756018242548,-500.0,0.00039989,120]
[381084932,1756018242558,-500.0,0.00039989,120]
[381084933,1756018242567,-608.51979734,0.00039989,120]
[381084934,1756018242577,-17714.4865963,0.0003999,3]
[381084935,1756018242586,-2633.93701096,0.0003999,3]
[381084936,1756018242597,-844.67759735,0.0003999,3]
[381084937,1756018242606,-202.20021287,0.00039999,30]
[381084938,1756018242616,-164.92,0.0004,30]
[381084939,1756018242625,-500.0,0.0004,2]
[381084940,1756018242635,-626804.47354121,0.0004,30]
[381084941,1756018242664,-500.0,0.00038961,15]
[381084942,1756018242675,-500.0,0.00038961,7]
[381084943,1756018242685,-2793.47099713,0.0004,30]
[381084944,1756018242696,-560.22086168,0.0004,30]
[381084945,1756018242708,-22474.84731031,0.0004,30]
[381084946,1756018242719,-11468.64915466,0.0004,30]
[381084956,1756018244025,-500.0,0.00038961,15]
[381084957,1756018244035,-500.0,0.00038961,7]
[381084958,1756018244045,-500.0,0.00038961,15]
[381084959,1756018244054,-500.0,0.00038961,7]
[381084960,1756018244064,-500.0,0.00038961,15]
[381084961,1756018244074,-500.0,0.00038961,7]
[381084962,1756018244084,-500.0,0.00038961,7]
[381084963,1756018244094,-500.0,0.00038961,15]
[381084964,1756018244103,-500.0,0.00038961,7]
[381084965,1756018244114,-500.0,0.00038961,7]
[381084966,1756018244123,-500.0,0.00038961,15]
[381084967,1756018244133,-258.44069811,0.00038961,7]
[381084968,1756018244143,-500.0,0.00038961,7]
[381084969,1756018244152,-500.0,0.00038961,15]
[381084970,1756018244162,-500.0,0.00038961,7]
[381084971,1756018244172,-500.0,0.00038961,15]
[381084972,1756018244182,-500.0,0.00038961,7]
[381084973,1756018244191,-500.0,0.00038961,7]
[381084974,1756018244200,-500.0,0.00038961,7]
[381084975,1756018244210,-203.449683,0.000399,30]
[381084976,1756018244219,-6152.23424689,0.0004,30]
[381084977,1756018244229,-151.0,0.0004,14]
[381084978,1756018244238,-151.0,0.0004,14]
[381084979,1756018244247,-151.0,0.0004,30]
[381084980,1756018244257,-235.844624,0.0004,30]
[381084981,1756018244266,-151.0,0.0004,30]
[381084982,1756018244275,-151.0,0.0004,30]
[381084983,1756018244284,-151.0,0.0004,30]
[381084984,1756018244294,-151.0,0.0004,30]
[381084985,1756018244303,-151.0,0.0004,30]
[381084986,1756018244313,-151.0,0.0004,30]
[381084987,1756018244323,-151.0,0.0004,30]
[381084988,1756018244333,-275.040463,0.0004,30]
[381084989,1756018244342,-151.0,0.0004,30]
[381084990,1756018244352,-151.0,0.0004,30]
[381084991,1756018244361,-151.0,0.0004,30]
[381084992,1756018244370,-151.0,0.0004,30]
[381084993,1756018244380,-151.0,0.0004,30]
[381084994,1756018244390,-151.0,0.0004,30]
[381084995,1756018244399,-151.0,0.0004,30]
[381084996,1756018244411,-220.246433,0.0004,30]
[381084997,1756018244420,-151.0,0.0004,30]
[381084998,1756018244429,-172.253638,0.0004,30]
[381084999,1756018244439,-172.253638,0.0004,30]
[381085000,1756018244448,-154.624,0.0004,30]
[381085001,1756018244457,-154.624,0.0004,30]
[381085002,1756018244471,-154.624,0.0004,30]
[381085003,1756018244480,-154.624,0.0004,30]
[381085004,1756018244489,-151.113094,0.0004,30]
[381085005,1756018244499,-151.113094,0.0004,30]
[381085006,1756018244513,-151.113094,0.0004,30]
[381085007,1756018244535,-151.0,0.0004,30]
[381085008,1756018244554,-151.113094,0.0004,30]
[381085009,1756018244564,-170.965756,0.0004,30]
[381085010,1756018244574,-170.965756,0.0004,30]
[381085011,1756018244583,-170.965756,0.0004,30]
[381085012,1756018244592,-170.965756,0.0004,30]
[381085013,1756018244602,-290.119967,0.0004,30]
[381085014,1756018244611,-290.119967,0.0004,30]
[381085015,1756018244620,-290.119967,0.0004,30]
[381085016,1756018244629,-290.119967,0.0004,30]
[381085017,1756018244639,-163.177633,0.0004,30]
[381085018,1756018244648,-151.0,0.0004,30]
[381085019,1756018244657,-163.177633,0.0004,30]
[381085020,1756018244667,-163.177633,0.0004,30]
[381085021,1756018244676,-151.0,0.0004,30]
[381085022,1756018244686,-163.177633,0.0004,30]
[381085023,1756018244696,-151.0,0.0004,30]
[381085024,1756018244706,-151.0,0.0004,30]
[381085025,1756018244715,-243.887761,0.0004,30]
[381085026,1756018244725,-151.0,0.0004,30]
[381085027,1756018244735,-151.0,0.0004,30]
[381085028,1756018244744,-151.0,0.0004,30]
[381085029,1756018244753,-151.0,0.0004,30]
[381085030,1756018244763,-151.0,0.0004,30]
[381085031,1756018244772,-151.0,0.0004,30]
[381085032,1756018244782,-151.0,0.0004,30]
[381085033,1756018244791,-151.0,0.0004,30]
[381085034,1756018244800,-151.0,0.0004,30]
[381085035,1756018244809,-151.0,0.0004,30]
[381085036,1756018244819,-162.356196,0.0004,30]
[381085037,1756018244828,-162.356196,0.0004,30]
[381085038,1756018244838,-162.356196,0.0004,30]
[381085039,1756018244847,-151.0,0.0004,30]
[381085040,1756018244856,-162.356196,0.0004,30]
[381085041,1756018244865,-151.0,0.0004,30]
[381085042,1756018244875,-151.0,0.0004,30]
[381085043,1756018244884,-151.0,0.0004,30]
[381085044,1756018244894,-160.56738,0.0004,30]
[381085045,1756018244903,-151.0,0.0004,30]
[381085046,1756018245104,-151.0,0.0004,30]
[381085047,1756018245114,-151.0,0.0004,30]
[381085048,1756018245124,-216.203797,0.0004,30]
[381085049,1756018245135,-216.203797,0.0004,30]
[381085050,1756018245144,-216.203797,0.0004,30]
[381085051,1756018245154,-216.203797,0.0004,30]
[381085052,1756018245163,-151.0,0.0004,30]
[381085053,1756018245173,-151.0,0.0004,30]
[381085054,1756018245183,-151.0,0.0004,30]
[381085055,1756018245192,-151.0,0.0004,30]
[381085056,1756018245202,-151.0,0.0004,30]
[381085057,1756018245211,-151.0,0.0004,30]
[381085058,1756018245224,-151.0,0.0004,30]
[381085059,1756018245237,-151.0,0.0004,30]
[381085060,1756018245246,-151.0,0.0004,30]
[381085061,1756018245256,-151.0,0.0004,30]
[381085062,1756018245266,-151.0,0.0004,30]
[381085063,1756018245275,-348.701245,0.0004,30]
[381085064,1756018245284,-151.0,0.0004,30]
[381085065,1756018245293,-348.701245,0.0004,30]
[381085066,1756018245303,-151.0,0.0004,30]
[381085067,1756018245312,-348.701245,0.0004,30]
[381085068,1756018245322,-348.701245,0.0004,30]
[381085069,1756018245331,-162.075695,0.0004,30]
[381085070,1756018245341,-151.0,0.0004,30]
[381085071,1756018245350,-162.075695,0.0004,30]
[381085072,1756018245360,-151.0,0.0004,30]
[381085073,1756018245369,-162.075695,0.0004,30]
[381085074,1756018245378,-151.0,0.0004,30]
[381085075,1756018245387,-162.075695,0.0004,30]
[381085076,1756018245396,-151.0,0.0004,30]
[381085077,1756018245406,-151.0,0.0004,30]
[381085078,1756018245415,-283.767003,0.0004,30]
[381085079,1756018245424,-283.767003,0.0004,30]
[381085080,1756018245434,-283.767003,0.0004,30]
[381085081,1756018245444,-283.767003,0.0004,30]
[381085082,1756018245456,-151.0,0.0004,30]
[381085083,1756018245469,-151.0,0.0004,30]
[381085084,1756018245478,-299.653151,0.0004,30]
[381085085,1756018245487,-151.0,0.0004,30]
[381085086,1756018245496,-151.0,0.0004,30]
[381085087,1756018245508,-299.653151,0.0004,30]
[381085088,1756018245518,-151.0,0.0004,30]
[381085089,1756018245527,-662.264513,0.0004,30]
[381085090,1756018245536,-277.256731,0.0004,30]
[381085091,1756018245546,-299.653151,0.0004,30]
[381085092,1756018245556,-662.264513,0.0004,30]
[381085093,1756018245565,-299.653151,0.0004,30]
[381085094,1756018245574,-662.264513,0.0004,30]
[381085095,1756018245584,-662.264513,0.0004,30]
[381085096,1756018245594,-347.456159,0.0004,30]
[381085097,1756018245603,-347.456159,0.0004,30]
[381085098,1756018245612,-347.456159,0.0004,30]
[381085099,1756018245621,-347.456159,0.0004,30]
[381085100,1756018245631,-1828.352457,0.0004,30]
[381085101,1756018245640,-1828.352457,0.0004,30]
[381085102,1756018245649,-346.009924,0.0004,30]
[381085103,1756018245660,-346.009924,0.0004,30]
[381085104,1756018245669,-1828.352457,0.0004,30]
[381085105,1756018245679,-346.009924,0.0004,30]
[381085106,1756018245689,-1828.352457,0.0004,30]
[381085107,1756018245699,-346.009924,0.0004,30]
[381085108,1756018245708,-194.94553,0.0004,30]
[381085109,1756018245718,-186.934617,0.0004,30]
[381085110,1756018245728,-151.0,0.0004,30]
[381085111,1756018245738,-151.0,0.0004,30]
[381085112,1756018245748,-186.934617,0.0004,30]
[381085113,1756018245758,-151.0,0.0004,30]
[381085114,1756018245767,-186.934617,0.0004,30]
[381085115,1756018245777,-292.791015,0.0004,30]
[381085116,1756018245787,-186.934617,0.0004,30]
[381085117,1756018245797,-178.882773,0.0004,30]
[381085118,1756018245807,-151.0,0.0004,30]
[381085119,1756018245816,-178.882773,0.0004,30]
[381085120,1756018245828,-151.0,0.0004,30]
[381085121,1756018245838,-178.882773,0.0004,30]
[381085122,1756018245848,-241.66252,0.0004,30]
[381085123,1756018245857,-151.0,0.0004,30]
[381085124,1756018245866,-178.882773,0.0004,30]
[381085125,1756018245876,-253.305063,0.0004,30]
[381085126,1756018245884,-253.305063,0.0004,30]
[381085127,1756018245894,-253.305063,0.0004,30]
[381085128,1756018245904,-253.305063,0.0004,30]
[381085129,1756018245914,-151.0,0.0004,30]
[381085130,1756018245923,-151.0,0.0004,30]
[381085131,1756018245932,-151.0,0.0004,30]
[381085132,1756018245941,-523.566991,0.0004,30]
[381085133,1756018245951,-151.0,0.0004,30]
[381085134,1756018245960,-151.0,0.0004,30]
[381085135,1756018245970,-523.566991,0.0004,30]
[381085136,1756018245979,-151.0,0.0004,30]
[381085137,1756018245989,-523.566991,0.0004,30]
[381085138,1756018245998,-523.566991,0.0004,30]
[381085139,1756018246008,-151.0,0.0004,30]
[381085141,1756018246018,-538.094166,0.0004,30]
[381085142,1756018246027,-151.0,0.0004,30]
[381085143,1756018246036,-538.094166,0.0004,30]
[381085144,1756018246046,-538.094166,0.0004,30]
[381085145,1756018246055,-538.094166,0.0004,30]
[381085147,1756018246065,-253.949387,0.0004,15]
[381085148,1756018246074,-253.949387,0.0004,15]
[381085149,1756018246084,-253.949387,0.0004,15]
[381085150,1756018246094,-253.949387,0.0004,15]
[381085151,1756018246103,-151.0,0.0004,30]
[381085152,1756018246112,-151.0,0.0004,30]
[381085153,1756018246122,-151.0,0.0004,30]
[381085154,1756018246131,-151.0,0.0004,30]
[381085156,1756018246140,-151.0,0.0004,30]
[381085158,1756018246150,-151.0,0.0004,30]
[381085159,1756018246160,-151.0,0.0004,30]
[381085160,1756018246169,-463.279017,0.0004,30]
[381085161,1756018246178,-1579.738618,0.0004,30]
[381085163,1756018246188,-345.336966,0.0004,30]
[381085164,1756018246198,-463.279017,0.0004,30]
[381085165,1756018246207,-151.0,0.0004,30]
[381085166,1756018246217,-345.336966,0.0004,30]
[381085167,1756018246227,-1579.738618,0.0004,30]
[381085168,1756018246237,-463.279017,0.0004,30]
[381085169,1756018246246,-151.0,0.0004,30]
[381085171,1756018246256,-345.336966,0.0004,30]
[381085172,1756018246266,-1579.738618,0.0004,30]
[381085174,1756018246276,-463.279017,0.0004,30]
[381085176,1756018246285,-345.336966,0.0004,30]
[381085178,1756018246295,-1579.738618,0.0004,30]
[381085180,1756018246305,-203.449683,0.0004,30]
[381085182,1756018246315,-10000.0,0.000402,120]
[381085184,1756018246324,-164.1197885,0.00040274,30]
[381085186,1756018246333,-1312.05,0.00040337,120]
[381085188,1756018246343,-593.313861,0.00040384,30]
[381085190,1756018246352,-199.0,0.00040448,120]
[381085192,1756018246361,-209.40437684,0.00040508,2]
[381085194,1756018246371,-8961.99152649,0.00040508,2]
[381085196,1756018246380,-1000.0,0.00040521,5]
[381085198,1756018246390,-199.0,0.00040548,120]
[381085200,1756018246399,-199.0,0.00040548,120]
[381085202,1756018246409,-480.0,0.00040548,15]
[381085204,1756018246418,-10736.74,0.000407,14]
[381085206,1756018246427,-1218.32580408,0.00040868,28]
[381085208,1756018246437,-2700.86840634,0.0004089,10]
[381085210,1756018246446,-1500.0,0.00041068,5]
[381085212,1756018246455,-326.0,0.00041086,14]
[381085214,1756018246466,-326.0,0.00041086,14]
[381085216,1756018246476,-326.0,0.00041086,14]
[381085218,1756018246485,-326.0,0.00041086,14]
[381085220,1756018246495,-326.0,0.00041086,14]
[381085222,1756018246503,-326.0,0.00041086,14]
[381085224,1756018246514,-326.0,0.00041086,14]
[381085226,1756018246524,-326.0,0.00041086,14]
[381085228,1756018246533,-326.0,0.00041086,14]
[381085230,1756018246542,-326.0,0.00041086,14]
[381085232,1756018246553,-326.0,0.00041086,14]
[381085234,1756018246564,-326.0,0.00041086,14]
[381085236,1756018246573,-326.0,0.00041086,14]
[381085238,1756018246583,-326.0,0.00041086,14]
[381085240,1756018246592,-326.0,0.00041086,14]
[381085242,1756018246601,-326.0,0.00041086,14]
[381085244,1756018246610,-326.0,0.00041086,14]
[381085246,1756018246620,-326.0,0.00041086,14]
[381085248,1756018246629,-326.0,0.00041086,14]
[381085250,1756018246639,-326.0,0.00041086,14]
[381085252,1756018246648,-156.85382725,0.00041086,14]
[381085254,1756018246659,-386.9439334,0.00041096,30]
[381085256,1756018246667,-165.19,0.000411,7]
[381085258,1756018246676,-4983.83764398,0.000411,2]
[381085260,1756018246686,-201.0,0.0004119,56]
[381085262,1756018246696,-6902.09289596,0.000412,120]
[381085264,1756018246712,-3097.90710404,0.000412,120]
[381085266,1756018246722,-435.32,0.000412,14]
[381085268,1756018246732,-514.34,0.00041643,120]
[381085270,1756018246741,-514.34,0.00041643,120]
[381085272,1756018246751,-514.34,0.00041643,120]
[381085274,1756018246761,-514.34,0.00041643,120]
[381085277,1756018246773,-514.34,0.00041643,120]
[381085279,1756018246782,-413.29549541,0.00041643,120]
[381085290,1756018246879,-101.04450459,0.00041643,120]
[381085292,1756018246888,-514.34,0.00041643,120]
[381085294,1756018246899,-37.43193441,0.00041643,120]
[381085296,1756018246911,-476.90806559,0.00041643,120]
[381085298,1756018246921,-514.34,0.00041643,120]
[381085300,1756018246930,-514.34,0.00041643,120]
[381085302,1756018246940,-514.34,0.00041643,120]
[381085304,1756018246950,-514.34,0.00041643,120]
[381085306,1756018246959,-514.34,0.00041643,120]
[381085308,1756018246968,-514.34,0.00041643,120]
[381085310,1756018246979,-514.34,0.00041643,120]
[381085312,1756018246988,-514.34,0.00041643,120]
[381085314,1756018246998,-514.34,0.00041643,120]
[381085316,1756018247008,-514.34,0.00041643,120]
[381085318,1756018247017,-514.34,0.00041643,120]
[381085320,1756018247027,-514.34,0.00041643,120]
[381085322,1756018247036,-514.34,0.00041643,120]
[381085324,1756018247046,-514.34,0.00041643,120]
[381085326,1756018247055,-514.34,0.00041643,120]
[381085328,1756018247065,-514.46573203,0.00041643,120]
[381085330,1756018247074,-1312.05,0.00041707,120]
[381085332,1756018247083,-217.15233878,0.00041877,2]
[381085334,1756018247092,-151.0,0.00041878,2]
[381085336,1756018247101,-10000.0,0.000422,120]
[381085338,1756018247111,-460.16444144,0.00042345,39]
[381085341,1756018247120,-716.52377898,0.000429,61]
[381085342,1756018247129,-2700.86840634,0.000429,10]
[381085344,1756018247139,-1218.32580408,0.00042944,28]
[381085347,1756018247149,-504.74485114,0.00042973,7]
[381085348,1756018247158,-320.87374149,0.00042973,10]
[381085351,1756018247167,-502.50223438,0.00042973,10]
[381085352,1756018247178,-500.0,0.00042973,10]
[381085354,1756018247187,-500.0,0.00042973,10]
[381085356,1756018247196,-500.0,0.00042973,10]
[381085358,1756018247206,-501.54035932,0.00042973,10]
[381085359,1756018247214,-500.0,0.00042973,10]
[381085360,1756018247223,-7465.44573231,0.00043,120]
[381085361,1756018247235,-141216.34196034,0.00043,120]
[381085363,1756018247770,-199.0,0.00039889,120]
[381085364,1756018247780,-203.449683,0.000399,30]
[381085365,1756018247790,-203.449683,0.000399,30]
[381085366,1756018247799,-203.449683,0.0004,30]
[381085367,1756018247808,-1148.80119527,0.00043,120]
[381085368,1756018247820,-1006.36689294,0.00043,120]
[381085369,1756018248963,-199.0,0.00039889,120]
[381085370,1756018248972,-151.0,0.000399,30]
[381085371,1756018248982,-203.449683,0.000399,30]
[381085372,1756018248992,-105.5626625,0.0004,30]
[381085373,1756018249004,-97.8870205,0.0004,30]
[381085374,1756018249013,-151.0,0.0004,30]
[381085375,1756018249023,-203.449683,0.0004,30]
[381085376,1756018249032,-13856.67810396,0.00043,120]
[381085377,1756018249043,-316.61004605,0.00043,120]
[381085378,1756018249055,-24369.05158312,0.00043,120]
[381085379,1756018249066,-2629.81384098,0.00043,120]
[381085380,1756018349641,333.60676808,0.000199,2]
[381085381,1756018349680,333.60676792,0.00021627,2]
[381085392,1756018530178,441.89907341,0.000199,2]
[381085393,1756018530940,441.89907327,0.00021627,2]
[381085394,1756018531154,441.89907327,0.00023353,2]
[381085395,1756018698069,388.89771757,0.000199,2]
[381085396,1756018698326,388.89771746,0.00023353,2]
[381085397,1756018698428,388.89771746,0.00021627,2]
[381085398,1756018870055,362.41870786,0.000199,2]
[381085399,1756018870766,362.41870762,0.00021627,2]
[381085400,1756018870959,362.41870762,0.00023353,2]
[381085405,1756019036500,326.17683709,0.000199,2]
[381085406,1756019037056,326.17683685,0.00023353,2]
[381085407,1756019037425,326.17683685,0.00021627,2]
[381085417,1756019202815,318.86255466,0.000199,2]
[381085418,1756019202955,318.86255453,0.00021627,2]
[381085419,1756019203054,318.86255453,0.00023353,2]
[381085420,1756019234434,-193.10462527,0.00025,2]
[381085421,1756019234461,-318.86255453,0.0002508,2]
[381085422,1756019234486,-318.86255453,0.00026806,6]
[381085423,1756019234511,-318.86255453,0.00028533,10]
[381085424,1756019234533,-1200.0,0.00030258,2]
[381085425,1756019234559,-318.86255453,0.00030259,13]
[381085426,1756019234584,-300.0,0.00032148,2]
[381085427,1756019234606,-397.4250688,0.00032149,2]
[381085428,1756019234628,-1200.0,0.00035258,3]
[381085429,1756019234649,-300.0,0.00035259,3]
[381085430,1756019234671,-300.0,0.00035259,3]
[381085431,1756019234692,-203.20387315,0.00035259,3]
[381085433,1756019372037,244.46129199,0.000199,2]
[381085434,1756019372344,244.4612918,0.00023353,2]
[381085435,1756019372898,244.4612918,0.00021627,2]
[381085467,1756019432750,-244.4612918,0.0002508,2]
[381085468,1756019432760,-244.4612918,0.00026806,6]
[381085470,1756019432770,-244.4612918,0.00028533,10]
[381085472,1756019432779,-199.0,0.00029494,10]
[381085474,1756019432788,-250.0,0.00029594,10]
[381085475,1756019432797,-250.0,0.00029594,10]
[381085477,1756019432807,-250.0,0.00029594,10]
[381085479,1756019432816,-250.0,0.00029594,10]
[381085481,1756019432825,-244.4612918,0.00033712,21]
[381085482,1756019432835,-244.4612918,0.00035439,24]
[381085484,1756019432844,-244.4612918,0.00037166,28]
[381085485,1756019432853,-761.45362755,0.00038752,2]
[381085486,1756019432862,-215.99145658,0.00038847,2]
[381085487,1756019432871,-9726.6975877,0.00038852,3]
[381085488,1756019432883,-7783.718725,0.00038852,3]
[381085499,1756019438616,-199.0,0.00028433,10]
[381085500,1756019438627,-2291.09604591,0.00038852,3]
[381085501,1756019438638,-812.33175654,0.00038852,3]
[381085502,1756019438650,-1166.96194687,0.00038852,3]
[381085510,1756019440565,-383.112,0.00038852,3]
[381085511,1756019440626,-433.55495278,0.00038852,3]
[381085512,1756019440658,-6499.9,0.00038852,3]
[381085601,1756019443653,-486.61442912,0.00038852,3]
[381085602,1756019443683,-400.92520632,0.00038852,3]
[381085603,1756019443695,-2593.50181254,0.00038852,3]
[381085639,1756019446836,-1898.91114637,0.00038852,3]
[381085640,1756019446847,-2723.09624305,0.00038852,3]
[381085641,1756019446857,-232.42214577,0.00038852,3]
[381085642,1756019446867,-160.0,0.00038852,3]
[381085643,1756019446876,-1148.04,0.00038861,120]
[381085644,1756019446886,-213.66799881,0.00038861,15]
[381085645,1756019446896,-561.75959698,0.00038861,15]
[381085646,1756019446905,-397.24924625,0.00038861,2]
[381085647,1756019446915,-500.0,0.00038861,15]
[381085648,1756019446924,-500.0,0.00038861,7]
[381085649,1756019446933,-500.0,0.00038861,15]
[381085650,1756019446943,-500.0,0.00038861,7]
[381085651,1756019446952,-375.84406981,0.00038861,7]
[381085652,1756019446961,-154.82523642,0.00038861,15]
[381085653,1756019446970,-200.0,0.00038862,10]
[381085654,1756019446980,-200.0,0.00038862,10]
[381085655,1756019446989,-200.0,0.00038862,10]
[381085656,1756019447004,-168.788403,0.00038862,10]
[381085657,1756019447014,-20901.7720509,0.00038862,2]
[381085658,1756019447034,-1195.99539939,0.00038862,2]
[381085659,1756019447078,-902.67841286,0.00038862,2]
[381085662,1756019537772,343.19260996,0.0002249,2]
[381085663,1756019590675,5000.0,0.00029594,30]
[381085664,1756019644544,1575.16,0.000245,3]
[381085665,1756019703611,320.31310262,0.0002249,2]
[381085666,1756019769076,-320.31310262,0.00024216,2]
[381085668,1756019868385,277.60468894,0.0002249,2]
[381085669,1756019868493,277.60468894,0.00024216,2]
[381085670,1756020035969,240.59073042,0.0002249,2]
[381085671,1756020036116,240.59073042,0.00024216,2]
[381085674,1756020200926,208.51196636,0.0002249,2]
[381085675,1756020201078,208.51196636,0.00024216,2]
[381085678,1756020367132,361.42074168,0.0002249,2]
[381085679,1756020367181,361.42074168,0.00024216,2]
[381085681,1756020454099,-361.42074168,0.00025943,4]
[381085682,1756020454126,-542.1311128,0.00025943,4]
[381085683,1756020454153,-361.42074168,0.00027669,8]
[381085684,1756020454180,-361.42074168,0.00029396,11]
[381085685,1756020454202,-1200.0,0.00029596,2]
[381085686,1756020454225,-300.0,0.00029596,2]
[381085687,1756020454247,-2680.47895788,0.00029597,30]
[381085688,1756020514280,9835.381183,0.00017,2]
[381085689,1756020520881,409.33230345,0.00029597,120]
[381085692,1756020531426,299.00139862,0.0002249,2]
[381085693,1756020531479,299.00139862,0.00024216,2]
[381085726,1756020631956,-299.00139862,0.00025943,4]
[381085728,1756020631966,-300.0,0.00025999,2]
[381085730,1756020631976,-300.0,0.00025999,2]
[381085732,1756020631985,-11692.54167797,0.00026,30]
[381085767,1756020637715,-199.0,0.000259,30]
[381085768,1756020637725,-45.65624783,0.00026,30]
[381085769,1756020637734,-844.67759735,0.00026,30]
[381085770,1756020637744,-299.00139862,0.00027669,8]
[381085771,1756020637753,-420.0,0.00028137,2]
[381085772,1756020637763,-160.0,0.00028389,2]
[381085773,1756020637772,-299.00139862,0.00029396,11]
[381085774,1756020637782,-199.0,0.00029497,30]
[381085775,1756020637791,-285.74900478,0.00029497,2]
[381085776,1756020637801,-900.28946879,0.00029497,2]
[381085777,1756020637810,-161.38519004,0.00029573,5]
[381085779,1756020637820,-500.0,0.00029573,5]
[381085780,1756020637829,-500.0,0.00029573,5]